fUSD/lending_fUSD_20251017
["ID","MTS","AMOUNT","RATE_DAILY","PERIOD"]
[391569337,1760664640076,-195.0,0.00015068,2]
[391569338,1760664640087,-250.0,0.00015068,2]
[391569339,1760664640097,-300.0,0.00015068,2]
[391569340,1760664640107,-2210.10240044,0.00015807,2]
[391569347,1760664640524,-258.90574754,0.00016,2]
[391569348,1760664640559,-5815.63194053,0.00016081,2]
[391569349,1760664640576,-40767.07634138,0.000162,5]
[391569350,1760664640588,-420.0,0.00016386,2]
[391569351,1760664640599,-420.0,0.00016386,2]
[391569352,1760664640609,-1680.0,0.00016469,2]
[391569353,1760664640620,-2202.0707,0.00016986,2]
[391569354,1760664640631,-204.89044741,0.00017,2]
[391569355,1760664640641,-1580.94959292,0.00017,2]
[391569356,1760664640650,-719.11633099,0.00017539,2]
[391569357,1760664640662,-587.0,0.00017934,2]
[391569358,1760664640672,-724.78578969,0.00018022,2]
[391569359,1760664640682,-2351.0,0.00018116,2]
[391569360,1760664640692,-737.0,0.00018219,2]
[391569361,1760664640702,-250.0,0.00018762,2]
[391569362,1760664640712,-151.29,0.000188,2]
[391569363,1760664640722,-151.29,0.000188,2]
[391569364,1760664640732,-151.29,0.000188,2]
[391569365,1760664640747,-151.29,0.000188,2]
[391569366,1760664640756,-151.29,0.000188,2]
[391569367,1760664640766,-151.29,0.000188,2]
[391569368,1760664640776,-151.29,0.000188,2]
[391569369,1760664640786,-151.29,0.000188,2]
[391569370,1760664640796,-1150.02822315,0.000192,2]
[391569371,1760664640805,-1150.02822315,0.000192,2]
[391569372,1760664640815,-151.0,0.00019223,2]
[391569373,1760664640825,-299.99,0.00019339,7]
[391569374,1760664640836,-999.99,0.00019339,2]
[391569375,1760664640846,-9999.99,0.00019339,2]
[391569376,1760664640856,-5954.99,0.00019339,2]
[391569377,1760664640866,-64500.49,0.00019339,2]
[391569378,1760664640877,-1319.92,0.00019339,2]
[391569379,1760664640887,-150.99,0.00019339,2]
[391569380,1760664640897,-9999.99,0.00019339,2]
[391569381,1760664640907,-1150.02822315,0.000194,2]
[391569382,1760664640917,-1150.02822315,0.000194,2]
[391569383,1760664640927,-178.0,0.00019518,2]
[391569384,1760664640942,-806.0,0.00019557,2]
[391569385,1760664640954,-1150.02822315,0.000196,2]
[391569386,1760664640965,-1150.02822315,0.000196,2]
[391569387,1760664640975,-228.0,0.00019628,2]
[391569388,1760664640985,-1150.02822315,0.000198,2]
[391569389,1760664640995,-1150.02822315,0.000198,2]
[391569390,1760664641006,-3292.0,0.00019927,2]
[391569391,1760664641017,-11176.9344,0.0001995,15]
[391569392,1760664641028,-475.57272817,0.00019999,2]
[391569393,1760664641038,-1150.02822315,0.0002,2]
[391569394,1760664641049,-558.31549266,0.0002,14]
[391569395,1760664641059,-169.36084098,0.0002,30]
[391569396,1760664641070,-1000.0,0.0002,4]
[391569397,1760664641081,-302.9,0.0002,2]
[391569398,1760664641092,-302.09,0.0002,2]
[391569399,1760664641103,-719.11633099,0.00020177,2]
[391569400,1760664641113,-408.24,0.00020187,2]
[391569401,1760664641123,-302.49,0.000202,2]
[391569402,1760664641134,-1150.02822315,0.000202,2]
[391569403,1760664641148,-303.61,0.000204,2]
[391569404,1760664641158,-300.54,0.000204,2]
[391569405,1760664641168,-303.18,0.000204,2]
[391569406,1760664641178,-300.48,0.000206,2]
[391569407,1760664641188,-305.95,0.000206,2]
[391569408,1760664641197,-301.24,0.000206,2]
[391569409,1760664641208,-304.87,0.000208,2]
[391569410,1760664641218,-301.12,0.000208,2]
[391569411,1760664641228,-9515.08778819,0.000209,30]
[391569412,1760664641240,-500.0,0.00020986,2]
[391569413,1760664641250,-31539.68813488,0.00021,2]
[391569414,1760664641260,-28070.39274135,0.00021,2]
[391569415,1760664641270,-1178.23601187,0.00021,2]
[391569416,1760664641281,-194.48448312,0.00021,2]
[391569417,1760664641291,-160.0,0.00021,7]
[391569418,1760664641301,-150.0,0.0002138,2]
[391569419,1760664641311,-1124.961432,0.000215,2]
[391569420,1760664641321,-993.0,0.000215,2]
[391569421,1760664641331,-375.0516784,0.00021777,2]
[391569422,1760664641341,-1424.16,0.00021917,2]
[391569423,1760664641351,-1424.16,0.00021917,2]
[391569424,1760664641361,-1424.16,0.00021917,2]
[391569425,1760664641371,-1424.16,0.00021917,2]
[391569426,1760664641381,-1424.16,0.00021917,2]
[391569427,1760664641390,-1424.16,0.00021917,2]
[391569428,1760664641400,-741.0,0.0002192,2]
[391569429,1760664641409,-6121.46699584,0.00022,4]
[391569430,1760664641419,-28482.83,0.00022,7]
[391569431,1760664641429,-5513.0,0.000221,3]
[391569432,1760664641439,-5513.0,0.000226,5]
[391569433,1760664641449,-303.46,0.0002265,2]
[391569434,1760664641459,-303.33,0.0002265,2]
[391569435,1760664641469,-150.0,0.00022655,2]
[391569436,1760664641480,-899.32,0.00022655,2]
[391569437,1760664641490,-10982.1223005,0.00022659,7]
[391569438,1760664641501,-2256.85909185,0.0002281,2]
[391569439,1760664641515,-719.11633099,0.00022816,2]
[391569440,1760664641525,-220.24254188,0.0002285,2]
[391569441,1760664641535,-2783.1726009,0.0002285,2]
[391569442,1760664641544,-305.91,0.00023107,2]
[391569443,1760664641554,-934.98,0.00023511,2]
[391569444,1760664641564,-152.0,0.00023872,3]
[391569445,1760664641575,-297.71055674,0.00024127,2]
[391569446,1760664641586,-760.2230672,0.00024127,2]
[391569447,1760664641596,-916.12395292,0.00024127,2]
[391569448,1760664641606,-450.77473595,0.00024127,2]
[391569449,1760664641615,-605.04671251,0.00024127,2]
[391569450,1760664641627,-1072.6299493,0.00024127,2]
[391569451,1760664641637,-1229.65583861,0.00024127,2]
[391569452,1760664641647,-1387.13768666,0.00024127,2]
[391569453,1760664641657,-1545.02572101,0.00024127,2]
[391569454,1760664641675,-200.0,0.0002443,2]
[391569455,1760664641685,-200.0,0.00024462,2]
[391569456,1760664641696,-305.65,0.00024472,2]
[391569457,1760664641707,-2650.86,0.00024524,2]
[391569458,1760664641717,-200.0,0.00024581,2]
[391569459,1760664641728,-600.0,0.00024581,2]
[391569460,1760664641738,-305.1,0.00024596,2]
[391569461,1760664641748,-300.15,0.00024596,2]
[391569462,1760664641758,-300.36,0.00024596,2]
[391569463,1760664641769,-300.79,0.00024596,2]
[391569464,1760664641781,-457.17,0.00024596,2]
[391569465,1760664641791,-305.82,0.00024596,2]
[391569466,1760664641802,-300.5,0.00024596,2]
[391569467,1760664641813,-301.65,0.00024597,2]
[391569468,1760664641823,-28482.83,0.000246,7]
[391569469,1760664641833,-305.09,0.00024603,2]
[391569470,1760664641843,-300.78,0.00024654,2]
[391569471,1760664641853,-151.29,0.0002479,2]
[391569472,1760664641864,-151.29,0.0002479,2]
[391569473,1760664641874,-625605.6733,0.000248,3]
[391569474,1760664641884,-500.0,0.00024873,2]
[391569475,1760664641894,-500.32606242,0.00024873,2]
[391569476,1760664641907,-500.15284643,0.00024873,2]
[391569477,1760664641937,-500.0,0.00024873,2]
[391569478,1760664641949,-278.31371444,0.00024873,2]
[391569479,1760664641960,-509.5797944,0.00024873,2]
[391569480,1760664641972,-500.19980439,0.00024873,2]
[391569481,1760664641983,-502.10987087,0.00024873,2]
[391569482,1760664641994,-500.36627413,0.00024873,2]
[391569483,1760664642005,-501.57855935,0.00024873,2]
[391569484,1760664642017,-500.87858746,0.00024873,2]
[391569485,1760664642028,-618819.591407,0.000249,3]
[391569486,1760664642039,-500.0,0.00024932,2]
[391569487,1760664642050,-1703.28007595,0.00024943,2]
[391569488,1760664642061,-1883.02887965,0.00025,7]
[391569489,1760664642072,-1000.0,0.00025,4]
[391569490,1760664642083,-534.55,0.00025037,2]
[391569491,1760664642095,-500.0,0.00025125,2]
[391569492,1760664642106,-500.0,0.00025125,2]
[391569493,1760664642117,-516.94,0.00025138,2]
[391569494,1760664642127,-277.35679052,0.0002514,2]
[391569495,1760664642138,-151.0,0.0002514,2]
[391569496,1760664642149,-250.0,0.0002514,2]
[391569497,1760664642160,-151.0,0.0002514,2]
[391569498,1760664642171,-250.0,0.0002514,2]
[391569499,1760664642184,-151.0,0.0002514,2]
[391569500,1760664642195,-250.0,0.0002514,2]
[391569501,1760664642205,-151.0,0.0002514,2]
[391569502,1760664642216,-250.0,0.0002514,2]
[391569503,1760664642228,-151.0,0.0002514,2]
[391569504,1760664642239,-1000.0,0.0002514,2]
[391569505,1760664642249,-250.0,0.0002514,2]
[391569506,1760664642261,-1000.0,0.0002514,2]
[391569507,1760664642272,-151.0,0.0002514,2]
[391569508,1760664642288,-1000.0,0.0002514,2]
[391569509,1760664642299,-250.0,0.0002514,2]
[391569510,1760664642310,-151.0,0.0002514,2]
[391569511,1760664642321,-1000.0,0.0002514,2]
[391569512,1760664642331,-250.0,0.0002514,2]
[391569513,1760664642344,-250.0,0.0002514,2]
[391569514,1760664642356,-151.0,0.0002514,2]
[391569515,1760664642366,-1000.0,0.0002514,2]
[391569516,1760664642378,-250.0,0.0002514,2]
[391569517,1760664642389,-250.0,0.0002514,2]
[391569518,1760664642399,-9211.34798985,0.0002514,2]
[391569519,1760664642411,-1000.0,0.0002514,2]
[391569520,1760664642422,-250.0,0.0002514,2]
[391569521,1760664642432,-250.0,0.0002514,2]
[391569522,1760664642443,-1000.0,0.0002514,2]
[391569523,1760664642453,-250.0,0.0002514,2]
[391569524,1760664642464,-250.0,0.0002514,2]
[391569525,1760664642474,-1000.0,0.0002514,2]
[391569526,1760664642485,-250.0,0.0002514,2]
[391569527,1760664642495,-250.0,0.0002514,2]
[391569528,1760664642506,-1000.0,0.0002514,2]
[391569529,1760664642517,-250.0,0.0002514,2]
[391569530,1760664642528,-250.0,0.0002514,2]
[391569531,1760664642538,-1000.0,0.0002514,2]
[391569532,1760664642549,-250.0,0.0002514,2]
[391569533,1760664642559,-151.0,0.0002514,2]
[391569534,1760664642569,-1000.0,0.0002514,2]
[391569535,1760664642581,-250.0,0.0002514,2]
[391569536,1760664642596,-151.0,0.0002514,2]
[391569537,1760664642608,-1000.0,0.0002514,2]
[391569538,1760664642624,-250.0,0.0002514,2]
[391569539,1760664642634,-151.0,0.0002514,2]
[391569540,1760664642645,-250.0,0.0002514,2]
[391569541,1760664642661,-151.0,0.0002514,2]
[391569542,1760664642672,-250.0,0.0002514,2]
[391569543,1760664642683,-1000.0,0.0002514,2]
[391569544,1760664642694,-1000.0,0.0002514,2]
[391569545,1760664642705,-1000.0,0.0002514,2]
[391569546,1760664642718,-1000.0,0.0002514,2]
[391569547,1760664642728,-1000.0,0.0002514,2]
[391569548,1760664642741,-1000.0,0.0002514,2]
[391569549,1760664642752,-250.0,0.0002514,2]
[391569550,1760664642763,-1000.0,0.0002514,2]
[391569552,1760664642773,-1000.0,0.0002514,2]
[391569555,1760664642783,-250.0,0.0002514,2]
[391569557,1760664642794,-1000.0,0.0002514,2]
[391569560,1760664642805,-1000.0,0.0002514,2]
[391569562,1760664642816,-250.0,0.0002514,2]
[391569564,1760664642827,-1000.0,0.0002514,2]
[391569566,1760664642839,-1000.0,0.0002514,2]
[391569567,1760664642851,-322.6107,0.0002514,2]
[391569568,1760664642862,-250.0,0.0002514,2]
[391569569,1760664642873,-1000.0,0.0002514,2]
[391569570,1760664642883,-1000.0,0.0002514,2]
[391569571,1760664642894,-250.0,0.0002514,2]
[391569572,1760664642904,-1000.0,0.0002514,2]
[391569573,1760664642915,-250.0,0.0002514,2]
[391569574,1760664642929,-1000.0,0.0002514,2]
[391569575,1760664642940,-1000.0,0.0002514,2]
[391569576,1760664642951,-250.0,0.0002514,2]
[391569577,1760664642962,-1000.0,0.0002514,2]
[391569578,1760664642973,-1000.0,0.0002514,2]
[391569579,1760664642984,-250.0,0.0002514,2]
[391569580,1760664642995,-1000.0,0.0002514,2]
[391569581,1760664643007,-250.0,0.0002514,2]
[391569582,1760664643018,-250.0,0.0002514,2]
[391569583,1760664643030,-1000.0,0.0002514,2]
[391569584,1760664643040,-250.0,0.0002514,2]
[391569585,1760664643051,-250.0,0.0002514,2]
[391569586,1760664643063,-151.0,0.0002514,2]
[391569587,1760664643073,-1000.0,0.0002514,2]
[391569588,1760664643084,-250.0,0.0002514,2]
[391569589,1760664643095,-250.0,0.0002514,2]
[391569590,1760664643106,-250.0,0.0002514,2]
[391569591,1760664643117,-250.0,0.0002514,2]
[391569592,1760664643128,-250.0,0.0002514,2]
[391569593,1760664643140,-250.0,0.0002514,2]
[391569595,1760664643151,-151.0,0.0002514,2]
[391569596,1760664643162,-250.0,0.0002514,2]
[391569597,1760664643172,-151.0,0.0002514,2]
[391569598,1760664643183,-250.0,0.0002514,2]
[391569599,1760664643193,-151.0,0.0002514,2]
[391569600,1760664643203,-250.0,0.0002514,2]
[391569601,1760664643213,-151.0,0.0002514,2]
[391569602,1760664643224,-668.65185757,0.0002514,2]
[391569603,1760664643234,-250.0,0.0002514,2]
[391569604,1760664643244,-151.0,0.0002514,2]
[391569605,1760664643255,-151.0,0.0002514,2]
[391569606,1760664643265,-151.0,0.0002514,2]
[391569607,1760664643276,-151.0,0.0002514,2]
[391569608,1760664643286,-151.0,0.0002514,2]
[391569609,1760664643297,-151.0,0.0002514,2]
[391569610,1760664643307,-151.0,0.0002514,2]
[391569611,1760664643318,-250.0,0.0002514,2]
[391569612,1760664643328,-250.0,0.0002514,2]
[391569614,1760664643339,-250.0,0.0002514,2]
[391569615,1760664643350,-250.0,0.0002514,2]
[391569616,1760664643360,-250.0,0.0002514,2]
[391569617,1760664643371,-250.0,0.0002514,2]
[391569618,1760664643382,-695.39793187,0.0002514,2]
[391569619,1760664643392,-250.0,0.0002514,2]
[391569620,1760664643403,-250.0,0.0002514,2]
[391569621,1760664643413,-250.0,0.0002514,2]
[391569622,1760664643424,-250.0,0.0002514,2]
[391569623,1760664643434,-250.0,0.0002514,2]
[391569624,1760664643445,-250.0,0.0002514,2]
[391569625,1760664643456,-4961.72738477,0.00025195,2]
[391569626,1760664643467,-1082.14,0.00025228,2]
[391569627,1760664643477,-830.4,0.00025278,2]
[391569628,1760664643488,-152.0,0.00025319,4]
[391569629,1760664643499,-531.4,0.00025333,2]
[391569630,1760664643509,-719.11633099,0.00025455,2]
[391569631,1760664643520,-250.0,0.00025483,2]
[391569632,1760664643530,-167.72,0.00025648,7]
[391569633,1760664643541,-258.0,0.00025671,2]
[391569634,1760664643551,-151.0,0.00025688,2]
[391569635,1760664643561,-28482.83,0.000257,7]
[391569636,1760664643571,-527.42,0.00025713,2]
[391569637,1760664643586,-4917.64,0.00025784,2]
[391569638,1760664643596,-21385.30523404,0.00025923,2]
[391569639,1760664643607,-1861.86809102,0.00025937,4]
[391569640,1760664643617,-250.17973598,0.00025973,2]
[391569641,1760664643627,-1256416.84036512,0.00026,2]
[391569642,1760664643647,-1092.7057858,0.00026,2]
[391569643,1760664643661,-56771.2564696,0.00026,2]
[391569644,1760664643673,-417668.76651915,0.00026,2]
[391569645,1760664643685,-64080.38131279,0.00026,2]
[391569646,1760664643697,-327.21,0.00026,2]
[391569647,1760664643748,-22820.50057584,0.00026,2]
[391569648,1760664643760,-407941.36596792,0.00026,2]
[391569649,1760664643773,-69527.42385401,0.00026,2]
[391569650,1760664645890,-1045.01992306,0.00014968,2]
[391569651,1760664645903,-202.64188095,0.0002285,2]
[391569652,1760664645914,-6039.84119609,0.00026,2]
[391569654,1760664646210,-1100.6148895,0.00026,2]
[391569655,1760664646222,-979.64195365,0.00026,2]
[391569656,1760664646236,-3941.75976743,0.00026,2]
[391569660,1760664668251,680.46,0.00012741,2]
[391569661,1760664684193,-680.46,0.00013412,2]
[391569662,1760664684224,-273.47884943,0.00014082,2]
[391569664,1760664774255,-326.80706379,0.00014082,2]
[391569668,1760664804789,-80.17408678,0.00014082,2]
[391569669,1760664804812,-300.0,0.00014417,2]
[391569670,1760664804834,-109.09195353,0.00014417,2]
[391569673,1760664873880,201.472,0.00027397,120]
[391569683,1760665095040,1000.0,0.00027397,120]
[391569684,1760665103284,1000.0,0.00027397,120]
[391569685,1760665115854,1081.5,0.00027397,120]
[391569686,1760665124681,1000.0,0.00027397,120]
[391569687,1760665161688,1000.0001301,0.00027397,120]
[391569688,1760665243600,284.0,0.00027397,120]
[391569715,1760665832009,-313.92303194,0.00014746,2]
[391569716,1760665832021,-759.80301203,0.00014746,2]
[391569717,1760665832116,-126.27395603,0.00014746,2]
[391569718,1760665832127,-300.0,0.00014746,2]
[391569719,1760665832141,-300.0,0.00014746,2]
[391569720,1760665832152,-300.0,0.00014746,2]
[391569721,1760665832162,-1200.0,0.00014746,2]
[391569722,1760665832172,-300.0,0.00014746,2]
[391569723,1760665832183,-195.0,0.00014746,2]
[391569724,1760665832193,-263.501,0.00014746,2]
[391569725,1760665832204,-418.44571756,0.00014747,2]
[391569726,1760665832215,-680.46,0.00014753,2]
[391569727,1760665832225,-195.0,0.0001488,2]
[391569728,1760665832235,-1400.397635,0.0001541,2]
[391569729,1760665832247,-680.46,0.00015423,2]
[391569730,1760665832257,-680.46,0.00016094,2]
[391569731,1760665832269,-195.0,0.00016221,2]
[391569732,1760665832280,-300.0,0.00016221,2]
[391569733,1760665832291,-300.0,0.00016221,2]
[391569734,1760665832301,-680.46,0.00016764,2]
[391569735,1760665832312,-680.46,0.00017435,2]
[391569736,1760665832322,-680.46,0.00018106,2]
[391569737,1760665832332,-709.13960265,0.00018234,2]
[391569738,1760665832343,-304.0,0.00018465,2]
[391569739,1760665832355,-150.0,0.00018465,2]
[391569740,1760665832372,-150.0,0.00018465,2]
[391569741,1760665832383,-151.0,0.00018466,2]
[391569743,1760665832394,-151.0,0.00018466,2]
[391569745,1760665832408,-154.16309091,0.00018466,2]
[391569747,1760665832418,-200.0,0.00018466,2]
[391569749,1760665832429,-500.0,0.00018466,2]
[391569750,1760665832440,-500.0,0.00018466,2]
[391569751,1760665832450,-500.0,0.00018466,2]
[391569752,1760665832460,-500.0,0.00018466,2]
[391569753,1760665832470,-500.0,0.00018466,2]
[391569754,1760665832480,-500.0,0.00018466,2]
[391569755,1760665832491,-151.0,0.00018466,2]
[391569756,1760665832501,-500.0,0.00018466,2]
[391569757,1760665832517,-151.0,0.00018466,2]
[391569758,1760665832527,-500.0,0.00018466,2]
[391569762,1760665832538,-151.0,0.00018466,2]
[391569764,1760665832548,-151.0,0.00018466,2]
[391569765,1760665832559,-500.0,0.00018466,2]
[391569766,1760665832568,-200.0,0.00018466,2]
[391569767,1760665832579,-151.0,0.00018466,2]
[391569768,1760665832590,-500.0,0.00018466,2]
[391569769,1760665832600,-151.0,0.00018466,2]
[391569770,1760665832611,-509.79898667,0.00018466,2]
[391569771,1760665832622,-151.0,0.00018466,2]
[391569772,1760665832631,-151.0,0.00018466,2]
[391569773,1760665832642,-151.0,0.00018466,2]
[391569774,1760665832652,-151.0,0.00018466,2]
[391569775,1760665832662,-159.60991893,0.00018466,2]
[391569776,1760665832672,-201.21916296,0.00018466,2]
[391569777,1760665832682,-151.0,0.00018466,2]
[391569778,1760665832693,-151.0,0.00018466,2]
[391569779,1760665832703,-151.0,0.00018466,2]
[391569780,1760665832713,-151.0,0.00018466,2]
[391569781,1760665832724,-151.0,0.00018466,2]
[391569782,1760665832734,-151.0,0.00018466,2]
[391569783,1760665832744,-151.0,0.00018466,2]
[391569784,1760665832753,-151.0,0.00018466,2]
[391569785,1760665832763,-151.0,0.00018466,2]
[391569786,1760665832772,-151.0,0.00018466,2]
[391569787,1760665832782,-151.0,0.00018466,2]
[391569788,1760665832791,-151.0,0.00018466,2]
[391569789,1760665832802,-151.0,0.00018466,2]
[391569790,1760665832811,-151.0,0.00018466,2]
[391569791,1760665832822,-151.0,0.00018466,2]
[391569792,1760665832832,-151.0,0.00018466,2]
[391569793,1760665832841,-151.0,0.00018466,2]
[391569794,1760665832851,-151.0,0.00018466,2]
[391569795,1760665832862,-151.0,0.00018466,2]
[391569796,1760665832871,-163.09189209,0.00018466,2]
[391569797,1760665832881,-1009.1,0.00018488,2]
[391569798,1760665832891,-500.0,0.000185,2]
[391569799,1760665832900,-500.0,0.000185,2]
[391569800,1760665832910,-500.93765703,0.000185,2]
[391569801,1760665832920,-507.13586651,0.000185,2]
[391569802,1760665832929,-503.08357813,0.000185,2]
[391569803,1760665832939,-500.0,0.000185,2]
[391569804,1760665832949,-500.0,0.000185,2]
[391569805,1760665832959,-150.0,0.000185,2]
[391569806,1760665832968,-150.0,0.000185,2]
[391569807,1760665832978,-510.16357124,0.000185,2]
[391569808,1760665832988,-503.90595787,0.000185,2]
[391569809,1760665832997,-1009.1,0.00018762,2]
[391569810,1760665833009,-680.46,0.00018776,2]
[391569811,1760665833019,-201.49157306,0.00019014,2]
[391569812,1760665833029,-1009.1,0.00019036,2]
[391569813,1760665833039,-1006.65740522,0.00019048,2]
[391569814,1760665833049,-1000.0,0.00019048,2]
[391569815,1760665833059,-500.0,0.00019048,2]
[391569816,1760665833070,-1007.02650157,0.00019048,2]
[391569817,1760665833079,-475.57272817,0.00019187,2]
[391569818,1760665833089,-1009.1,0.0001931,2]
[391569819,1760665833099,-868.56,0.00019339,2]
[391569820,1760665833111,-7152.27,0.00019339,2]
[391569821,1760665833121,-150.99,0.00019339,2]
[391569822,1760665833134,-680.46,0.00019447,2]
[391569823,1760665833155,-250.0,0.00019484,2]
[391569824,1760665833165,-1009.1,0.00019584,2]
[391569825,1760665833176,-252.1420805,0.00019596,2]
[391569826,1760665833185,-1009.1,0.00019858,2]
[391569827,1760665833195,-680.46,0.00020117,2]
[391569828,1760665833205,-1009.1,0.00020132,2]
[391569829,1760665833215,-1009.11419254,0.00020406,2]
[391569830,1760665833226,-680.46,0.00020788,2]
[391569831,1760665833236,-2529.98,0.00020969,2]
[391569832,1760665833246,-150.99,0.00021072,2]
[391569833,1760665833256,-781.73,0.00021074,2]
[391569834,1760665833266,-208.83084756,0.00021205,2]
[391569835,1760665833276,-680.46,0.00021458,2]
[391569836,1760665833286,-500.0,0.00021661,2]
[391569837,1760665833296,-15062.98,0.00021676,2]
[391569838,1760665833306,-5000.0,0.00021918,2]
[391569839,1760665833316,-166.66,0.00021982,30]
[391569840,1760665833326,-173.0,0.00022,2]
[391569841,1760665833336,-179.0,0.00022,2]
[391569842,1760665833346,-680.46,0.00022129,2]
[391569843,1760665833356,-1679.43,0.00022162,2]
[391569844,1760665833366,-166.66,0.00022445,30]
[391569845,1760665833376,-680.46,0.000228,2]
[391569846,1760665833386,-495.47,0.00022836,2]
[391569847,1760665833396,-166.66,0.00022908,30]
[391569848,1760665833406,-174.0,0.00023014,7]
[391569849,1760665833415,-179.0,0.00023014,7]
[391569850,1760665833425,-150.0,0.00023089,2]
[391569851,1760665833435,-166.66,0.00023371,30]
[391569852,1760665833446,-680.46,0.0002347,2]
[391569853,1760665833456,-168.45,0.00023731,2]
[391569854,1760665833465,-166.66,0.00023833,30]
[391569855,1760665833475,-150.0,0.00023835,2]
[391569856,1760665833485,-150.74263188,0.00024127,2]
[391569857,1760665833495,-228.88118345,0.00024127,2]
[391569858,1760665833505,-307.82011002,0.00024127,2]
[391569859,1760665833520,-387.35958112,0.00024127,2]
[391569860,1760665833530,-467.3809273,0.00024127,2]
[391569861,1760665833540,-628.57612973,0.00024127,2]
[391569862,1760665833550,-547.80523629,0.00024127,2]
[391569863,1760665833560,-709.65126738,0.00024127,2]
[391569864,1760665833570,-680.46,0.00024141,2]
[391569865,1760665833581,-166.66,0.00024296,30]
[391569866,1760665833593,-151.54,0.00024658,2]
[391569867,1760665833602,-790.99765867,0.00024791,2]
[391569868,1760665833613,-680.46,0.00024811,2]
[391569869,1760665833623,-500.0,0.00024932,2]
[391569870,1760665833633,-314.21596165,0.00025,2]
[391569871,1760665833643,-576.18,0.00025282,2]
[391569872,1760665833653,-299.594,0.00025298,9]
[391569873,1760665833662,-1000.0,0.000253,2]
[391569874,1760665833673,-1000.0,0.000253,2]
[391569875,1760665833682,-1000.0,0.000253,2]
[391569876,1760665833693,-1000.0,0.000253,2]
[391569877,1760665833703,-150.0,0.000253,2]
[391569878,1760665833713,-150.0,0.000253,2]
[391569879,1760665833723,-150.0,0.000253,2]
[391569880,1760665833733,-1000.0,0.000253,2]
[391569881,1760665833743,-474.73,0.00025382,2]
[391569882,1760665833753,-695.39793187,0.00025389,2]
[391569883,1760665833763,-427.24897689,0.00025389,2]
[391569884,1760665833773,-288.26852904,0.00025389,2]
[391569885,1760665833783,-152.48296005,0.00025389,2]
[391569886,1760665833794,-322.6107,0.00025389,2]
[391569887,1760665833803,-250.0,0.00025389,2]
[391569888,1760665833813,-1000.0,0.00025389,2]
[391569889,1760665833823,-250.0,0.00025389,2]
[391569890,1760665833833,-1000.0,0.00025389,2]
[391569891,1760665833843,-250.0,0.00025389,2]
[391569892,1760665833854,-1000.0,0.00025389,2]
[391569893,1760665833865,-250.0,0.00025389,2]
[391569894,1760665833874,-1000.0,0.00025389,2]
[391569895,1760665833884,-467.40924853,0.00025389,2]
[391569896,1760665833894,-250.0,0.00025389,2]
[391569897,1760665833904,-1000.0,0.00025389,2]
[391569898,1760665833915,-250.0,0.00025389,2]
[391569899,1760665833925,-1000.0,0.00025389,2]
[391569900,1760665833935,-250.0,0.00025389,2]
[391569901,1760665833945,-1000.0,0.00025389,2]
[391569902,1760665833954,-250.0,0.00025389,2]
[391569903,1760665833963,-1045.43602087,0.00025389,2]
[391569904,1760665833972,-250.0,0.00025389,2]
[391569905,1760665833981,-250.0,0.00025389,2]
[391569906,1760665833990,-250.0,0.00025389,2]